Cogmind - Beta 16 @@@ ROGUE MODE // 2026.01.07 @ 22:37:31 Player: Tom Fryers Result: Destroyed by YI-UF0 with YI-UF0's Doublenader Performance ------------- Evolutions (0) 0 Regions Visited (2) 400 Robots Destroyed (18) 90 Value Destroyed (399) 399 Prototype IDs (1) 20 Alien Tech Used (0) 0 Bonus (0) 0 TOTAL SCORE: 909 Bonus ------- None Cogmind --------- Core Integrity 0/250 Matter 284/300 Energy 269/280 System Corruption 0% Temperature Cool (0) Movement Treading (160) Location -10/Mines Parts ------- > --- POWER (1) -------- Heavy Ion Engine > --- PROPULSION (2) --- Light Treads > --- UTILITY (2) ------ Small Storage Unit Structural Scanner > --- WEAPON (2) ------- Particle Gun Heavy Assault Rifle > --- INVENTORY (8) ---- Heavy Ion Engine Light Nuclear Core Aluminum Leg Aluminum Leg Visual Processing Unit Light Armor Plating Heavy Assault Rifle Peak State ------------ > --- POWER ------------ Heavy Ion Engine > --- PROPULSION ------- Light Treads Light Treads > --- UTILITY ---------- Small Storage Unit Weight Redist. System > --- WEAPON ----------- Heavy Assault Rifle Heavy Assault Rifle > --- INVENTORY -------- Ion Engine Heavy Ion Engine Aluminum Leg Aluminum Leg Medium Laser Small Laser Heavy Assault Rifle Heavy Assault Rifle [Rating: 13] Favorites ----------- Power Heavy Ion Engine Engine Heavy Ion Engine Propulsion Light Treads Treads Light Treads Utility Small Storage Unit Device Structural Scanner Storage Small Storage Unit Weapon Heavy Assault Rifle Energy Gun Medium Laser Ballistic Gun Heavy Assault Rifle Build | -11 -10 -10 ------- Run | Yrd Mat Min Slots Evolved . | . . . Power . | . . . Propulsion . | . . . Utility . | . . . Weapon . | . . . Parts Attached 13 | 5 6 2 Power 2 | 1 1 . Engine 2 | 1 1 . Core . | . . . Reactor . | . . . Propulsion 2 | 1 1 . Treads 2 | 1 1 . Leg . | . . . Wheel . | . . . Hover . | . . . Flight . | . . . Utility 3 | 1 2 . Device 2 | . 2 . Storage 1 | 1 . . Processor . | . . . Hackware . | . . . Protection . | . . . Artifact . | . . . Weapon 6 | 2 2 2 Energy Gun 3 | 2 . 1 Energy Cannon . | . . . Ballistic Gun 3 | . 2 1 Ballistic Cannon . | . . . Launcher . | . . . Special Weapon . | . . . Impact Weapon . | . . . Slashing Weapon . | . . . Piercing Weapon . | . . . Special Melee Weapon . | . . . Unidentified Prototypes 1 | . 1 . Parts Lost 3 | . . 3 Power . | . . . Propulsion 1 | . . 1 Utility . | . . . Weapon 2 | . . 2 Highest Loss Streak 2 | . . 2 To Critical Strikes . | . . . Average Backups 7 | 4 7 7 Power 1 | . 1 2 Propulsion 2 | 2 2 2 Utility 1 | . 1 2 Weapon 1 | . 2 1 Tool/Special . | . . . Unused Backups 10 | . 2 8 Power 3 | . 1 2 Propulsion 2 | . . 2 Utility 3 | . . 3 Weapon 2 | . 1 1 Tool/Special . | . . . Average Slot Usage (%) 97 | . 96 99 Engine 14 | . 14 14 Treads 27 | . 26 28 Device 12 | . 12 14 Storage 14 | . 14 14 Energy Gun 1 | . 1 . Ballistic Gun 26 | . 26 27 Peak Build Rating 13 | 5 13 12 Average Rating 11 | 2 11 11 On Entrance 5 | . 5 12 Avg Prop Armor Cover (%) . | . . . Naked Turns . | . . . Heaviest Build 20 | 13 20 20 Greatest Support 40 | 20 40 40 Greatest Overweight (x) 1 | 1 . . Average Overweight (x) . | . . . Largest Inventory Capacity 8 | 8 8 8 Average Capacity 7 | 6 8 8 Most Carried 8 | 5 8 8 Average Carried 7 | 4 7 7 Final Capacity 8 | 8 8 8 Final Carried 8 | 5 8 7 Class Distribution -------------------- 100% | Mutant Dominant Class ---------------- Mutant | -10/Materials Mutant | -10/Mines Resources | -11 -10 -10 ----------- Run | Yrd Mat Min Matter Collected 607 | 223 322 62 Remotely . | . . . Salvage Created 491 | . 432 59 Parts 48 | . 42 6 Haulers Intercepted . | . . . Recyclers Shooed . | . . . Parts Field Recycled . | . . . Retrieved Matter . | . . . Parts Self-Destructed . | . . . Prevented . | . . . Parts Restored . | . . . Kills | -11 -10 -10 ------- Run | Yrd Mat Min Combat Hostiles Destroyed 13 | . 10 3 Guns 13 | . 10 3 Classes Destroyed 5 | . 5 . Worker 1 | . 1 . Operator 1 | . 1 . Watcher 3 | . 3 . Swarmer 6 | . 3 3 Grunt 7 | . 7 . Best Kill Streak 5 | . 5 3 Combat Bots Only 3 | . 3 3 Max Kills in Single Turn 2 | . 1 2 Gunslinging 1 | . . 1 Exploded . | . . . Melee . | . . . Uniques/NPCs Destroyed . | . . . Combat | -11 -10 -10 -------- Run | Yrd Mat Min Hostile Shots Fired 95 | . 57 38 Missed 25 | . 16 9 Hits 70 | . 41 29 Projectile 70 | . 41 29 AOE 8 | . . 8 Damage Taken 937 | . 531 406 Core 263 | . 138 125 Absorbed by Shields . | . . . Regen/Repaired (Parts) 101 | . 101 . Core Remaining (%) 100 | 100 . . Volleys Fired 51 | . 40 11 Largest 2 | . 2 2 Hottest 88 | . 46 88 Shots Fired 99 | . 80 19 Gun 99 | . 80 19 Cannon . | . . . Launcher . | . . . Special . | . . . Kinetic 98 | . 80 18 Thermal 1 | . . 1 Explosive . | . . . Electromagnetic . | . . . Robot Hit Streak 8 | . 8 3 Robot Miss Streak 5 | . 5 2 Penetration Max . | . . . Secondary Targets 1 | . . 1 Max Gunslinging Chain 1 | . . 1 Shots Hit Robots 51 | . 40 11 Core Hits 27 | . 22 5 Critical Kills . | . . . Critical Parts Destroyed 1 | . 1 . Critical Strikes 1 | . 1 . Destroy 1 | . 1 . Melee Attacks . | . . . Impact . | . . . Slashing . | . . . Piercing . | . . . Sneak Attacks . | . . . Combat Hostiles . | . . . Follow-up Attacks . | . . . Damage Inflicted 770 | . 614 156 Guns 770 | . 614 156 Cannons . | . . . Explosions . | . . . Melee . | . . . Ramming . | . . . Kinetic 755 | . 614 141 Thermal 15 | . . 15 Explosive . | . . . Electromagnetic . | . . . Impact . | . . . Slashing . | . . . Piercing . | . . . Highest Corruption . | . . . Average Corruption . | . . . Corruption Purged . | . . . Corruption Blocked . | . . . Overload Shots . | . . . Overflow Damage . | . . . Projectiles . | . . . Explosions . | . . . Melee . | . . . Knockbacks . | . . . Impact . | . . . Kinetic . | . . . Secondary . | . . . Self-Inflicted Damage 68 | . 68 . Shots 1 | . 1 . Rammed . | . . . Targets Rammed . | . . . Kicked . | . . . Crushed . | . . . Highest Temperature 21 | . 21 . Average Temperature 5 | . 5 . Received Heat Transfer 189 | . 189 . Siege Activations . | . . . Martial Activations . | . . . Shielding Activations . | . . . Robots Disrupted . | . . . Combat Hostiles . | . . . Robots Corrupted . | . . . Combat Hostiles . | . . . Parts Fried . | . . . Impact Corruptions . | . . . Robots Melted . | . . . Combat Hostiles . | . . . Parts Melted . | . . . Heat Transferred 37 | . . 37 Parts Sabotaged . | . . . Parts Stolen . | . . . Parts Stripped . | . . . Power Chain Reactions . | . . . Alert | -11 -10 -10 ------- Run | Yrd Mat Min Maximum Alert Level 1 | . 1 . Low Security (%) 95 | 100 93 100 Level 1 4 | . 6 . Level 2 . | . . . Level 3 . | . . . Level 4 . | . . . Level 5 . | . . . High Security . | . . . Max Security . | . . . Peak Influence 216 | . 216 77 Initial 57 | . . 57 Average 99 | . 129 40 Influence Increases 460 | . 390 70 Destroy 0b10 Robot/C 260 | . 200 60 Destroy 0b10 Robot/NC 25 | . 25 . Destroy Leader 66 | . 56 10 Successful Hack 18 | . 18 . Disable Machine 15 | . 15 . Destroy Structure 31 | . 31 . Partial Spotted 15 | . 15 . Lose Combat Pursuer 30 | . 30 . Influence Decreases 460 | . 242 218 Entered New Map 91 | . . 91 Time Decay 342 | . 242 100 Lost Part 27 | . . 27 Squads Dispatched 2 | . 2 . Investigation . | . . . Extermination . | . . . Reinforcement 2 | . 2 . Assault . | . . . Garrison . | . . . Intercept . | . . . Searches Triggered . | . . . Construction Impeded . | . . . Haulers Reinforced . | . . . Active Scanning Responses . | . . . Cargo Convoy Interrupts . | . . . Stealth | -11 -10 -10 --------- Run | Yrd Mat Min Distress Signals 1 | . 1 . Communications Jammed . | . . . Distress Signals . | . . . Times Spotted 19 | . 15 4 Peak Tracking Total 3 | . 3 3 Tactical Retreats 1 | . 1 . Traps | -11 -10 -10 ------- Run | Yrd Mat Min Traps Triggered . | . . . Indirectly . | . . . Trap Hack Attempts . | . . . Triggered . | . . . Disarmed . | . . . Reprogrammed . | . . . Reused . | . . . Traps Extracted . | . . . Installed . | . . . Triggered . | . . . Machines | -11 -10 -10 ---------- Run | Yrd Mat Min Machines Disabled 1 | . 1 . Max in Single Turn 1 | . 1 . Machines Repaired . | . . . Machines Dismantled . | . . . Machines Sabotaged . | . . . Overloaded Fab Kills . | . . . Hacking | -11 -10 -10 --------- Run | Yrd Mat Min Machines Accessed 4 | . 4 . Terminals 2 | . 2 . Fabricators . | . . . Repair Stations 1 | . 1 . Recycling Units 1 | . 1 . Scanalyzers . | . . . Garrison Access . | . . . Total Hacks 10 | . 10 . Successful 7 | . 7 . Failed 3 | . 3 . Catastrophic 2 | . 2 . Database Lockouts . | . . . Manual . | . . . Terminals 5 | . 5 . Fabricators . | . . . Repair Stations 3 | . 3 . Recycling Units 2 | . 2 . Scanalyzers . | . . . Garrison Access . | . . . Terminal Hacks 3 | . 3 . Locate Traps 1 | . 1 . Registered Components 1 | . 1 . Zone Layout 1 | . 1 . Fabricator Hacks . | . . . Repair Station Hacks 3 | . 3 . Scan Component 2 | . 2 . Repair 1 | . 1 . Recycling Unit Hacks 1 | . 1 . Retrieve Components 1 | . 1 . Scanalyzer . | . . . Garrison Access Hacks . | . . . Unauthorized Hacks . | . . . Terminals . | . . . Fabricators . | . . . Repair Stations . | . . . Recycling Units . | . . . Scanalyzers . | . . . Garrison Access . | . . . Data Cores Recovered 1 | . 1 . Used . | . . . Hacking Detections 4 | . 4 . Full Trace Events 1 | . 1 . Feedback Events . | . . . Feedback Blocked . | . . . Robot Schematics Acquired . | . . . Robots Built . | . . . Authchips . | . . . Time . | . . . Total Robot Build Rating . | . . . Part Schematics Acquired . | . . . Parts Built . | . . . Authchips . | . . . Time . | . . . Total Part Build Rating . | . . . Part Studies Acquired . | . . . Parts Repaired 1 | . 1 . Time 26 | . 26 . Parts Recycled . | . . . Recycled Matter . | . . . Retrieved Matter . | . . . Retrieved Components . | . . . Parts Scanalyzed . | . . . Part Schematics Acquired . | . . . Parts Damaged . | . . . Bothacking | -11 -10 -10 ------------ Run | Yrd Mat Min Used RIF Installer . | . . . Robots Hacked . | . . . Non-combat . | . . . Combat . | . . . Robot Hacks Applied . | . . . Relay Couplers Released . | . . . Fabnet Peak Effective % . | . . . Robots Rewired . | . . . Allies Hacked . | . . . Hacks Repelled . | . . . Allies | -11 -10 -10 -------- Run | Yrd Mat Min Total Allies . | . . . Largest Group . | . . . Highest-Rated Group . | . . . Highest-Rated Ally . | . . . Total Orders . | . . . Ally Attacks . | . . . Total Damage . | . . . Kills . | . . . Allies Corrupted . | . . . Allies Melted . | . . . Intel | -11 -10 -10 ------- Run | Yrd Mat Min Active Infowar (turns) 813 | . 600 213 Structural 813 | . 600 213 Robot Analysis Total . | . . . Derelict Logs Recovered . | . . . Drone Launches . | . . . Drone Recoveries . | . . . Exploration | -11 -10 -10 ------------- Run | Yrd Mat Min Turns Passed 967 | 77 677 213 Spaces Moved 484 | 54 317 113 Core 24 | 24 . . Treads 460 | 30 317 113 Legs . | . . . Wheels . | . . . Hover . | . . . Flight . | . . . Fastest Speed 50 | 50 160 160 Average Speed 155 | 121 160 160 Slowest Speed 160 | 160 160 160 Overloaded Moves . | . . . Propulsion Burnouts . | . . . Robots Hopped . | . . . Potential Cave-ins . | . . . Cave-ins Triggered . | . . . Exploration Rate (%) 30 | 3 59 30 Regions Visited 2 Branch Regions 1 Pre-discovered Areas . | . . . Known Exits Taken . | . . . Unknown Exits Taken 2 | 1 1 . Scrap Searched 1 | . . 1 Spaces Dug . | . . . Terrain Destroyed 32 | . 32 . Melee . | . . . Projectile . | . . . AOE 32 | . 32 . Terrain Rammed . | . . . Walls Destroyed . | . . . Machines Disabled . | . . . Actions | -11 -10 -10 --------- Run | Yrd Mat Min Total 602 | 64 409 129 Wait 29 | . 29 . Move 482 | 53 316 113 Hop . | . . . Pick Up 18 | 6 10 2 Fast Attach 7 | 4 3 . Attach 4 | 1 1 2 Detach . | . . . Swap 3 | . 3 . Drop 8 | . 7 1 Fire 51 | . 40 11 Melee . | . . . Ram . | . . . Kick . | . . . Crush . | . . . Escape Stasis . | . . . Rewire . | . . . Trap . | . . . Miscellaneous . | . . . Route ------- -11/Scrapyard -10/Materials (discovered 3 exits: [*Mat] / [*Min x2]) -10/Mines History --------- Turn | Location | Event 8 | -11/Scrapyard | Discovered new exit (range 14) 78 | -11/Scrapyard | Entered Materials 310 | -10/Materials | Discovered new exit (range 9) 316 | -10/Materials | Build established: Mutant 367 | -10/Materials | Discovered new exit (range 9) 413 | -10/Materials | Core integrity fell below 50% 469 | -10/Materials | Discovered new exit (range 11) 588 | -10/Materials | Repaired Lgt. Treads 755 | -10/Materials | Entered Mines 965 | -10/Mines | Core integrity fell below 20% 968 | -10/Mines | Destroyed by YI-UF0 with YI-UF0's Doublenader Last Messages --------------- Switching to secondary target: S-10 Pest. S-10 Pest destroyed. Acquired 20 matter. Acquired 19 matter. Acquired 20 matter. U-05 Engineer lays Concrete. Searching scrap... Found Lgt. Armor Plating. Found Grenade Launcher. Found Com. Wheel. Found 49 Matter. Acquired 3 matter. Acquired Lgt. Armor Plating. U-05 Engineer lays Concrete. Dropped Weight Redist. System. Acquired Particle Gun. The unstable cave ceiling collapses. R-06 Scavenger destroyed. Lgt. Treads destroyed. Hvy. Assault Rifle destroyed. Map ----- +----------------------------------------------------+ | ?????????????????????????????????????????????????? | | ?????????????????????????????????????????????????? | | ?????????????????????????????????????????????????? | | ?????????????????????????????????????????????????? | | ?????????????????????????????????????????????????? | | ?????????????????????????????????????????????????? | | ?????????????????????????????????????????????????? | | ?????????????????????????????????????????????????? | | ?????????????????????????????? ##????????????????? | | ?????????????????????????????? ##????????????????? | | ?????????????????????????##### ????????????????? | | ????????????????????????###### ??????????????????? | | ????????????????????????## ??????????????????? | | ??????????????????????### ? ###??????????????? | | ????????????????????##### ? ####?????????????? | | ???????????????????##### ?? ####????????????? | | ???????????????????### ?? ###????????????? | | ???????????????????## ?? ##????????????? | | ???????????????????## ? ???????????????? | | ???????????????????## ?? ????????????????? | | ???????????????????### ?????????????????? | | ???????????????????##### ## ##?????????????????? | | ??????????????????? # ###?????????????????? | | ??????????????????? # ######??????????????? | | ??????????????????? # ######?####?????????? | | ??????????????????? # @ ## ###?????????? | | ??????????????????? # # ????????? | | #?????????????????? # # ????????? | | #??????????????????## %= ????????? | | #???????????## ????### ! = ????????? | | #???????????## ???#### g ????????? | | ####????????## ???## # ????????? | | ####????????## ???###! # ????????? | | ##????????## #### ## # ????????? | | # ##????????## ####% # # # ?????????? | | # ##????????## =%] ## = ## ##??????????? | | ############### # ### % ###??????????? | | # ############### ##? #####??????????? | | # ##??## #######? ???????????? | | ########## ###?## ####### ????????????? | | ########## ###### ##????? ## ???????????? | | ????##### ##### ##?????## # ????????????? | | ####### #### ##????????### ????????????? | | ###### #### ##?????????######??????????????? | | ##* * #### ##??????????#####??????????????? | | ## #### ##### ##?????????????????????????????? | | ##[#### ##### ##?????????????????????????????? | | ##=### #### ##?????????????????????????????? | | ##[## #### ####?????????????????????????????? | | * #### ####?????????????????????????????? | +----------------------------------------------------+ Best States ------------- Heat Dissipation 25 Energy Generation 14 Energy Capacity 280 Matter Stores 300 Matter Capacity 300 Sight Range 16 Terrain Scan Density 10 Evasion (%) 50 Recoil Reduction 2 Item Schematics ----------------- None Robot Schematics ------------------ None Fabricated ------------ Nothing Repaired ---------- Lgt. Treads | 27% | -10/Materials Studied --------- None Alien Tech Used ----------------- None Achievements -------------- Risk Taker Challenges ------------ None Game ------ Seed MomentumNullAutopenetrator Manual? 0 Play Time 00:16:14 Cumulative 4.9 hours Start 2026.01.07 @ 22:21:41 End 2026.01.07 @ 22:37:31 Sessions 1 Manual Loads 0 Difficulty Rogue Special Mode None Game No. 7 Rogue 7 Adventurer 0 Explorer 0 Win Type - Total 0 Types 0/0/0/0/0/0/0/0/0/0 Lore% 1 Gallery% 8 Achievement% 10 Wizard Run 0 Options --------- Layout 1 ASCII 1 Keyboard 0 Movement Mouse Keybinds 0 Fullscreen 1 Font 48/Terminus++ Map View 50x35 Zoom Use 0% Tactical HUD 0 Map Filters NONE Filters NONE Steam 1 RUN: cabf22fc-d7a4-4a4e-ab37-af79e336c083